[Event "ESP-chT Div I 2018"]
[Site "Linares"]
[Date "2018.08.09"]
[Round "4"]
[White "Mista, Aleksander"]
[Black "Tejedor Fuente, Enrique"]
[Result "0-1"]
[ECO "B32"]
[WhiteElo "2604"]
[BlackElo "2408"]
[Annotator "ChessBase"]
[PlyCount "86"]
[EventDate "2018.08.06"]
[EventType "team-tourn"]
[EventCountry "ESP"]
[SourceTitle "playchess.com"]
[Source "ChessBase"]
[SourceQuality "1"]
[TimeControl "40/5400+30:1800+30"]

1. e4 {[%emt 0:00:00]} c5 {[%emt 0:00:00]} 2. Nf3 {[%emt 0:00:00]} Nc6 {[%emt 0:00:10]} 3. d4 {[%emt 0:00:00]} cxd4 {[%emt 0:00:01]} 4. Nxd4 {[%emt 0:00:00]} Qb6 {[%emt 0:00:23]} 5. Nb3 {[%emt 0:00:12]} Nf6 {[%emt 0:00:20]} 6. Nc3 {[%emt 0:00:15]} e6 {[%emt 0:00:47]} 7. Bd3 {[%emt 0:01:55]} Be7 {[%emt 0:00:58]} 8. f4 {[%emt 0:00:46]} d5 {[%emt 0:07:02]} 9. e5 {[%emt 0:08:59]} Nd7 {[%emt 0:01:05]} 10. Qf3 {[%emt 0:00:51]} a6 {[%emt 0:10:27]} 11. Be3 {[%emt 0:03:46]} Qc7 {[%emt 0:03:57]} 12. Ne2 {[%emt 0:09:28]} b6 {[%emt 0:15:51]} 13. Nbd4 {[%emt 0:03:42]} Nb4 {[%emt 0:07:04]} 14. O-O {[%emt 0:02:32]} Nc5 {[%emt 0:02:21]} 15. Rfd1 {[%emt 0:16:49]} O-O {[%emt 0:02:19]} 16. a3 {[%emt 0:05:56]} Nbxd3 {[%emt 0:06:38]} 17. cxd3 {[%emt 0:00:04]} a5 {[%emt 0:06:46]} 18. Rac1 {[%emt 0:02:48]} Qd7 {[%emt 0:05:42]} 19. b4 {[%emt 0:10:50]} axb4 {[%emt 0:02:40]} 20. axb4 {[%emt 0:00:05]} Na6 {[%emt 0:00:32]} 21. b5 {[%emt 0:10:47]} Nc7 {[%emt 0:00:24]} 22. Rb1 {[%emt 0:06:15]} Bc5 {[%emt 0:09:53]} 23. Qg3 {[%emt 0:00:13]} Kh8 {[%emt 0:01:10]} 24. Rf1 {[%emt 0:00:52]} f5 {[%emt 0:03:06]} 25. exf6 {[%emt 0:01:39]} gxf6 {[%emt 0:01:40]} 26. Kh1 {[%emt 0:02:56]} Bb7 {[%emt 0:02:21]} 27. Bd2 {[%emt 0:02:04]} Ra2 {[%emt 0:00:48]} 28. Bc3 {[%emt 0:00:21]} Rxe2 {[%emt 0:00:33]} 29. Nxe2 {[%emt 0:00:44]} d4 {[%emt 0:00:00]} 30. Nxd4 {[%emt 0:06:34]} Rg8 {[%emt 0:03:37]} 31. Nf5 {[%emt 0:01:24]} Rxg3 {[%emt 0:00:14]} 32. Bxf6+ {[%emt 0:00:16]} Rg7 {[%emt 0:05:54]} 33. Nxg7 {[%emt 0:00:07]} Bd4 {[%emt 0:00:11]} 34. Nh5+ {[%emt 0:01:36]} Bxf6 {[%emt 0:00:11]} 35. Nxf6 {[%emt 0:00:03]} Qxd3 {[%emt 0:01:06]} 36. f5 {[%emt 0:01:24]} Qc2 {[%emt 0:00:47]} 37. Rg1 {[%emt 0:00:10]} Qxf5 {[%emt 0:00:59]} 38. Rbf1 {[%emt 0:00:18]} Qxb5 {[%emt 0:00:30]} 39. Rf2 {[%emt 0:00:06]} Nd5 {[%emt 0:00:29]} 40. Nh5 {[%emt 0:00:04]} Qe8 {[%emt 0:00:28]} 41. Ng3 {[%emt 0:30:22]} Ne3 {[%emt 0:30:19]} 42. h3 {[%emt 0:00:01]} Qg6 {[%emt 0:00:16]} 43. Kh2 {[%emt 0:00:12]} Qh6 {[%emt 0:00:17]} 0-1

[Event "ESP-chT Div I 2018"]
[Site "Linares"]
[Date "2018.08.09"]
[Round "4"]
[White "Martinez Alcantara, Jose Eduardo"]
[Black "Dvirnyy, Danyyil"]
[Result "1-0"]
[ECO "C96"]
[WhiteElo "2561"]
[BlackElo "2496"]
[Annotator "ChessBase"]
[PlyCount "131"]
[EventDate "2018.08.06"]
[EventType "team-tourn"]
[EventCountry "ESP"]
[SourceTitle "playchess.com"]
[Source "ChessBase"]
[SourceQuality "1"]
[TimeControl "40/5400+30:1800+30"]

1. e4 {[%emt 0:00:00]} e5 {[%emt 0:00:00]} 2. Nf3 {[%emt 0:00:00]} Nc6 {[%emt 0:00:00]} 3. Bb5 {[%emt 0:00:00]} a6 {[%emt 0:00:18]} 4. Ba4 {[%emt 0:00:00]} Nf6 {[%emt 0:00:23]} 5. O-O {[%emt 0:00:00]} Be7 {[%emt 0:00:20]} 6. Re1 {[%emt 0:00:01]} b5 {[%emt 0:00:08]} 7. Bb3 {[%emt 0:00:06]} d6 {[%emt 0:00:08]} 8. c3 {[%emt 0:00:04]} O-O {[%emt 0:00:12]} 9. h3 {[%emt 0:00:05]} Na5 {[%emt 0:00:30]} 10. Bc2 {[%emt 0:00:07]} c5 {[%emt 0:00:09]} 11. d4 {[%emt 0:03:21]} Nd7 {[%emt 0:00:15]} 12. a4 {[%emt 0:00:23]} b4 {[%emt 0:00:24]} 13. cxb4 {[%emt 0:00:32]} cxb4 {[%emt 0:00:08]} 14. Nbd2 {[%emt 0:00:03]} Bb7 {[%emt 0:03:22]} 15. d5 {[%emt 0:02:26]} Bc8 {[%emt 0:00:42]} 16. Nf1 {[%emt 0:07:35]} Nb7 {[%emt 0:01:43]} 17. Ng3 {[%emt 0:04:18]} g6 {[%emt 0:01:18]} 18. Bh6 {[%emt 0:03:45]} Re8 {[%emt 0:00:45]} 19. Be3 {[%emt 0:08:13]} a5 {[%emt 0:03:10]} 20. Bd3 {[%emt 0:01:15]} Nbc5 {[%emt 0:00:20]} 21. Bb5 {[%emt 0:05:03]} Rf8 {[%emt 0:00:28]} 22. Rc1 {[%emt 0:13:15]} Bf6 {[%emt 0:09:22]} 23. Nd2 {[%emt 0:05:59]} Bg5 {[%emt 0:05:46]} 24. Ngf1 {[%emt 0:13:16]} Bxe3 {[%emt 0:05:18]} 25. Nxe3 {[%emt 0:00:07]} Nf6 {[%emt 0:00:11]} 26. Rxc5 {[%emt 0:03:44]} dxc5 {[%emt 0:00:43]} 27. Nec4 {[%emt 0:00:01]} Qe7 {[%emt 0:05:14]} 28. Nf3 {[%emt 0:00:33]} Nd7 {[%emt 0:16:41]} 29. Bxd7 {[%emt 0:01:18]} Bxd7 {[%emt 0:00:08]} 30. Nfxe5 {[%emt 0:00:31]} Rad8 {[%emt 0:02:07]} 31. b3 {[%emt 0:08:41]} Be8 {[%emt 0:01:23]} 32. Nd3 {[%emt 0:02:04]} f5 {[%emt 0:01:14]} 33. f3 {[%emt 0:09:18]} fxe4 {[%emt 0:04:46]} 34. fxe4 {[%emt 0:00:01]} Qf6 {[%emt 0:00:13]} 35. Nde5 {[%emt 0:02:41]} Qf2+ {[%emt 0:05:14]} 36. Kh1 {[%emt 0:01:13]} g5 {[%emt 0:01:53]} 37. Ng4 {[%emt 0:01:24]} Qh4 {[%emt 0:00:13]} 38. Kh2 {[%emt 0:01:55]} Qh5 {[%emt 0:06:15]} 39. Nce5 {[%emt 0:00:54]} Rd6 {[%emt 0:02:09]} 40. Qc1 {[%emt 0:00:30]} Qh4 {[%emt 0:05:33]} 41. g3 {[%emt 0:31:11]} Qh5 {[%emt 0:30:07]} 42. Qxc5 {[%emt 0:00:16]} Rh6 {[%emt 0:00:45]} 43. Nxh6+ {[%emt 0:00:19]} Qxh6 {[%emt 0:00:05]} 44. Ng4 {[%emt 0:01:52]} Qg6 {[%emt 0:00:45]} 45. e5 {[%emt 0:01:10]} Qd3 {[%emt 0:00:09]} 46. Qe3 {[%emt 0:00:21]} Rf3 {[%emt 0:02:49]} 47. Nf6+ {[%emt 0:01:03]} Kf8 {[%emt 0:00:08]} 48. Qxd3 {[%emt 0:01:19]} Rxd3 {[%emt 0:00:09]} 49. Nxh7+ {[%emt 0:01:09]} Ke7 {[%emt 0:00:08]} 50. Nf6 {[%emt 0:00:02]} Bg6 {[%emt 0:00:20]} 51. h4 {[%emt 0:01:06]} Rxb3 {[%emt 0:01:52]} 52. h5 {[%emt 0:00:20]} Rb2+ {[%emt 0:00:33]} 53. Kh3 {[%emt 0:00:49]} Bf5+ {[%emt 0:00:05]} 54. g4 {[%emt 0:00:09]} Rb3+ {[%emt 0:00:27]} 55. Kh2 {[%emt 0:00:16]} Rb2+ {[%emt 0:00:24]} 56. Kg3 {[%emt 0:00:26]} Rb3+ {[%emt 0:00:53]} 57. Kf2 {[%emt 0:00:12]} Bc2 {[%emt 0:02:36]} 58. h6 {[%emt 0:01:00]} Rh3 {[%emt 0:00:21]} 59. d6+ {[%emt 0:00:26]} Ke6 {[%emt 0:00:13]} 60. d7 {[%emt 0:00:08]} Ke7 {[%emt 0:00:15]} 61. e6 {[%emt 0:00:25]} Bg6 {[%emt 0:01:53]} 62. Nd5+ {[%emt 0:01:10]} Kd8 {[%emt 0:00:06]} 63. Rc1 {[%emt 0:00:19]} Bc2 {[%emt 0:00:38]} 64. Rxc2 {[%emt 0:00:19]} Rh2+ {[%emt 0:00:08]} 65. Kg3 {[%emt 0:00:05]} Rxc2 {[%emt 0:00:05]} 66. h7 {[%emt 0:00:04]} 1-0

[Event "ESP-chT Div I 2018"]
[Site "Linares"]
[Date "2018.08.09"]
[Round "4"]
[White "Cramling, Pia"]
[Black "Bressac, Stephane"]
[Result "0-1"]
[ECO "E94"]
[WhiteElo "2453"]
[BlackElo "2341"]
[Annotator "ChessBase"]
[PlyCount "62"]
[EventDate "2018.08.06"]
[EventType "team-tourn"]
[EventCountry "ESP"]
[SourceTitle "playchess.com"]
[Source "ChessBase"]
[SourceQuality "1"]
[TimeControl "40/5400+30:1800+30"]

1. d4 {[%emt 0:00:00]} d6 {[%emt 0:00:00]} 2. Nf3 {[%emt 0:00:09]} Nf6 {[%emt 0:00:11]} 3. c4 {[%emt 0:00:24]} g6 {[%emt 0:00:14]} 4. Nc3 {[%emt 0:00:23]} Nbd7 {[%emt 0:00:08]} 5. e4 {[%emt 0:02:28]} e5 {[%emt 0:00:13]} 6. Be2 {[%emt 0:00:20]} Bg7 {[%emt 0:00:23]} 7. O-O {[%emt 0:00:21]} O-O {[%emt 0:00:09]} 8. Be3 {[%emt 0:00:22]} Qe7 {[%emt 0:01:28]} 9. Qc2 {[%emt 0:01:01]} c6 {[%emt 0:01:03]} 10. Rad1 {[%emt 0:05:52]} exd4 {[%emt 0:12:48]} 11. Bxd4 {[%emt 0:23:06]} Bh6 {[%emt 0:00:33]} 12. Rfe1 {[%emt 0:04:06]} Ne5 {[%emt 0:16:20]} 13. b4 {[%emt 0:06:47]} Nfd7 {[%emt 0:09:14]} 14. Na4 {[%emt 0:07:51]} Re8 {[%emt 0:07:38]} 15. Bc3 {[%emt 0:03:56]} Nxf3+ {[%emt 0:09:55]} 16. Bxf3 {[%emt 0:00:08]} Ne5 {[%emt 0:00:04]} 17. Be2 {[%emt 0:02:29]} Ng4 {[%emt 0:04:35]} 18. g3 {[%emt 0:07:34]} Be6 {[%emt 0:07:21]} 19. Bb2 {[%emt 0:13:17]} Rad8 {[%emt 0:06:08]} 20. Qc3 {[%emt 0:02:15]} f6 {[%emt 0:00:31]} 21. f4 {[%emt 0:01:05]} Bg7 {[%emt 0:11:39]} 22. f5 {[%emt 0:00:37]} Bf7 {[%emt 0:00:03]} 23. Bxg4 {[%emt 0:00:33]} b5 {[%emt 0:00:02]} 24. cxb5 {[%emt 0:08:25]} cxb5 {[%emt 0:00:04]} 25. Nc5 {[%emt 0:01:41]} dxc5 {[%emt 0:00:35]} 26. Qxc5 {[%emt 0:00:34]} Rxd1 {[%emt 0:00:30]} 27. Rxd1 {[%emt 0:00:32]} Qxe4 {[%emt 0:00:55]} 28. Bh3 {[%emt 0:01:56]} Bh6 {[%emt 0:02:32]} 29. Bc1 {[%emt 0:02:32]} Bxc1 {[%emt 0:01:00]} 30. Qxc1 {[%emt 0:02:10]} Bd5 {[%emt 0:00:08]} 31. Rxd5 {[%emt 0:00:23]} Qxd5 0-1

[Event "ESP-chT Div I 2018"]
[Site "Linares"]
[Date "2018.08.09"]
[Round "4"]
[White "Almagro Llamas, Pablo"]
[Black "Gonzalez De La Torre, Santiago"]
[Result "1-0"]
[ECO "D30"]
[WhiteElo "2442"]
[BlackElo "2434"]
[Annotator "NA RC"]
[PlyCount "47"]
[EventDate "2018.08.06"]
[EventType "team-tourn"]
[EventCountry "ESP"]
[SourceTitle "playchess.com"]
[Source "ChessBase"]
[SourceQuality "1"]
[TimeControl "40/5400+30:1800+30"]

1. c4 {[%emt 0:00:00]} c6 {[%emt 0:00:00]} 2. d4 {[%emt 0:02:13]} d5 {[%emt 0:00:05]} 3. Nf3 {[%emt 0:00:32]} Nf6 {[%emt 0:00:06]} 4. e3 {[%emt 0:00:38]} e6 {[%emt 0:00:26]} 5. Nbd2 {[%emt 0:00:42]} c5 {[%emt 0:00:09]} 6. a3 {[%emt 0:03:46]} cxd4 {[%emt 0:00:54]} 7. Nxd4 {[%emt 0:00:31]} Nc6 {[%emt 0:02:52]} 8. Nxc6 {[%emt 0:19:06]} bxc6 {[%emt 0:00:48]} 9. Nf3 {[%emt 0:00:15]} Bd6 {[%emt 0:02:58]} 10. b4 {[%emt 0:01:08]} O-O {[%emt 0:00:31]} 11. c5 {[%emt 0:08:06]} Bc7 {[%emt 0:05:59]} 12. Bb2 {[%emt 0:00:59]} Nd7 {[%emt 0:00:45]} 13. Bd3 {[%emt 0:07:53]} f5 {[%emt 0:07:23]} 14. Nd4 {[%emt 0:05:12]} Ne5 {[%emt 0:03:50]} 15. f4 {[%emt 0:02:00]} Ng4 {[%emt 0:19:26]} 16. Nxc6 {[%emt 0:10:59]} Qd7 {[%emt 0:04:17]} 17. b5 {[%emt 0:10:41]} Nxe3 {[%emt 0:00:26]} 18. Qf3 {[%emt 0:00:13]} Bxf4 {[%emt 0:00:25]} 19. Bd4 {[%emt 0:00:22]} Nxg2+ {[%emt 0:08:22]} 20. Qxg2 {[%emt 0:00:17]} e5 {[%emt 0:00:12]} 21. O-O {[%emt 0:02:34]} Bxh2+ {[%emt 0:18:29]} 22. Qxh2 {[%emt 0:07:20]} e4 {[%emt 0:00:10]} 23. Be2 {[%emt 0:01:46]} Qe6 {[%emt 0:04:58]} 24. Qd6 {[%emt 0:02:56]} 1-0

[Event "ESP-chT Div I 2018"]
[Site "Linares"]
[Date "2018.08.09"]
[Round "4"]
[White "Franco Alonso, Alejandro"]
[Black "Rubio Mejia, Luis Ignacio"]
[Result "1/2-1/2"]
[ECO "A40"]
[WhiteElo "2410"]
[BlackElo "2442"]
[Annotator "NA"]
[PlyCount "99"]
[EventDate "2018.08.06"]
[EventType "team-tourn"]
[EventCountry "ESP"]
[SourceTitle "playchess.com"]
[Source "ChessBase"]
[SourceQuality "1"]
[TimeControl "40/5400+30:1800+30"]

1. d4 {[%emt 0:00:00]} Nf6 {[%emt 0:00:00]} 2. c4 {[%emt 0:00:00]} e6 {[%emt 0:00:00]} 3. g3 {[%emt 0:00:00]} d5 {[%emt 0:02:04]} 4. Nf3 {[%emt 0:00:00]} Bb4+ {[%emt 0:00:07]} 5. Bd2 {[%emt 0:00:14]} Bd6 {[%emt 0:00:19]} 6. Nc3 {[%emt 0:00:27]} O-O {[%emt 0:05:35]} 7. Bg5 {[%emt 0:00:22]} c6 {[%emt 0:08:12]} 8. Bg2 {[%emt 0:00:29]} Nbd7 {[%emt 0:05:09]} 9. e4 dxe4 {[%emt 0:10:34]} 10. Nxe4 {[%emt 0:01:53]} Bb4+ {[%emt 0:10:54]} 11. Nc3 {[%emt 0:00:16]} Bxc3+ {[%emt 0:07:20]} 12. bxc3 {[%emt 0:00:09]} Qa5 {[%emt 0:00:49]} 13. O-O {[%emt 0:14:49]} Qxc3 {[%emt 0:09:56]} 14. Qe2 {[%emt 0:01:11]} Qa5 {[%emt 0:03:09]} 15. a4 {[%emt 0:04:45]} c5 {[%emt 0:04:07]} 16. Bd2 {[%emt 0:07:13]} Qc7 {[%emt 0:07:24]} 17. Bf4 {[%emt 0:07:52]} Qa5 {[%emt 0:00:21]} 18. Rfb1 {[%emt 0:08:54]} a6 {[%emt 0:08:10]} 19. Bd2 {[%emt 0:19:39]} Qc7 {[%emt 0:02:19]} 20. Bf4 {[%emt 0:01:04]} Qa5 {[%emt 0:00:06]} 21. Qd2 {[%emt 0:00:59]} Qxd2 {[%emt 0:03:49]} 22. Bxd2 {[%emt 0:00:06]} Re8 {[%emt 0:02:36]} 23. Ba5 {[%emt 0:07:15]} cxd4 {[%emt 0:04:33]} 24. Nxd4 {[%emt 0:00:15]} Nc5 {[%emt 0:01:00]} 25. Bb6 {[%emt 0:03:30]} Nfd7 {[%emt 0:00:59]} 26. Bc7 {[%emt 0:00:14]} Nf6 {[%emt 0:01:10]} 27. Nb3 {[%emt 0:05:36]} Nxb3 {[%emt 0:01:20]} 28. Rxb3 {[%emt 0:00:04]} Ra7 {[%emt 0:00:54]} 29. Be5 {[%emt 0:03:32]} Re7 {[%emt 0:00:38]} 30. Rab1 {[%emt 0:02:02]} Rd7 {[%emt 0:00:39]} 31. Bf4 {[%emt 0:04:33]} Kf8 {[%emt 0:00:20]} 32. Be3 {[%emt 0:01:57]} Ra8 {[%emt 0:00:08]} 33. Bxb7 {[%emt 0:02:25]} Bxb7 {[%emt 0:00:12]} 34. Rxb7 {[%emt 0:00:04]} Rc8 {[%emt 0:00:41]} 35. Rb8 {[%emt 0:01:24]} Rdc7 {[%emt 0:00:39]} 36. Rxc8+ {[%emt 0:00:50]} Rxc8 {[%emt 0:00:05]} 37. Rb6 {[%emt 0:00:27]} Rxc4 {[%emt 0:00:46]} 38. Rxa6 {[%emt 0:00:12]} Nd5 {[%emt 0:00:11]} 39. Ba7 {[%emt 0:01:43]} Nb4 {[%emt 0:01:22]} 40. Ra5 {[%emt 0:00:58]} Nc6 {[%emt 0:00:36]} 41. Bc5+ {[%emt 0:30:18]} Ke8 {[%emt 0:30:08]} 42. Ra8+ {[%emt 0:00:03]} Kd7 {[%emt 0:00:05]} 43. Bb6 {[%emt 0:00:03]} Nb4 {[%emt 0:00:52]} 44. Rg8 {[%emt 0:03:15]} Nd5 {[%emt 0:00:40]} 45. a5 {[%emt 0:00:06]} g6 {[%emt 0:00:37]} 46. Rg7 {[%emt 0:00:26]} Ke7 {[%emt 0:00:16]} 47. Rxh7 {[%emt 0:00:08]} Nxb6 {[%emt 0:00:24]} 48. axb6 {[%emt 0:00:05]} Rb4 {[%emt 0:00:05]} 49. h4 {[%emt 0:00:18]} Rxb6 {[%emt 0:00:13]} 50. Rh8 {[%emt 0:00:05]} 1/2-1/2

[Event "ESP-chT Div I 2018"]
[Site "Linares"]
[Date "2018.08.09"]
[Round "4"]
[White "Martin Fuentes, Alberto"]
[Black "Vazquez Igarza, Renier"]
[Result "1-0"]
[ECO "B10"]
[WhiteElo "2391"]
[BlackElo "2577"]
[Annotator "ChessBase"]
[PlyCount "81"]
[EventDate "2018.08.06"]
[EventType "team-tourn"]
[EventCountry "ESP"]
[SourceTitle "playchess.com"]
[Source "ChessBase"]
[SourceQuality "1"]
[TimeControl "40/5400+30:1800+30"]

1. e4 {[%emt 0:00:00]} c6 {[%emt 0:00:10]} 2. Nc3 {[%emt 0:00:00]} e5 {[%emt 0:00:58]} 3. d4 {[%emt 0:01:32]} d6 {[%emt 0:00:54]} 4. dxe5 {[%emt 0:02:37]} dxe5 {[%emt 0:00:13]} 5. Qxd8+ {[%emt 0:00:09]} Kxd8 {[%emt 0:00:04]} 6. Bc4 {[%emt 0:00:50]} f6 {[%emt 0:03:55]} 7. Be3 {[%emt 0:06:44]} Nd7 {[%emt 0:05:15]} 8. O-O-O {[%emt 0:02:49]} Kc7 {[%emt 0:00:42]} 9. f4 {[%emt 0:03:19]} Bd6 {[%emt 0:04:02]} 10. f5 {[%emt 0:03:58]} Ne7 {[%emt 0:00:21]} 11. g4 {[%emt 0:03:02]} h6 {[%emt 0:04:17]} 12. h4 {[%emt 0:03:34]} Bb4 {[%emt 0:00:01]} 13. Nge2 {[%emt 0:01:47]} b5 {[%emt 0:00:02]} 14. Bb3 {[%emt 0:01:18]} Nc5 {[%emt 0:00:51]} 15. g5 {[%emt 0:02:44]} Nxb3+ {[%emt 0:01:38]} 16. axb3 {[%emt 0:00:55]} hxg5 {[%emt 0:02:12]} 17. hxg5 {[%emt 0:00:25]} Bb7 {[%emt 0:00:02]} 18. Ng3 {[%emt 0:04:25]} fxg5 {[%emt 0:12:27]} 19. Bxg5 {[%emt 0:00:30]} Bc5 {[%emt 0:01:48]} 20. Nce2 {[%emt 0:12:19]} Bd6 {[%emt 0:07:54]} 21. Nh5 {[%emt 0:08:38]} Rh7 {[%emt 0:04:25]} 22. Nhf4 {[%emt 0:02:31]} Rxh1 {[%emt 0:01:08]} 23. Ne6+ {[%emt 0:00:07]} Kd7 {[%emt 0:00:19]} 24. Rxh1 {[%emt 0:00:10]} c5 {[%emt 0:00:10]} 25. Rd1 {[%emt 0:00:57]} Rc8 {[%emt 0:03:04]} 26. Ng3 {[%emt 0:02:12]} c4 {[%emt 0:05:58]} 27. bxc4 {[%emt 0:04:17]} Rxc4 {[%emt 0:00:07]} 28. Nxg7 {[%emt 0:00:15]} Nc6 {[%emt 0:02:37]} 29. Ne8 {[%emt 0:10:16]} Nd4 {[%emt 0:02:33]} 30. Nxd6 {[%emt 0:00:38]} Kxd6 {[%emt 0:00:26]} 31. Kb1 {[%emt 0:02:08]} b4 {[%emt 0:01:58]} 32. Be3 {[%emt 0:03:55]} a5 {[%emt 0:02:15]} 33. b3 {[%emt 0:04:59]} Rc7 {[%emt 0:03:04]} 34. Rxd4+ {[%emt 0:01:31]} exd4 {[%emt 0:00:02]} 35. Bf4+ {[%emt 0:00:11]} Kd7 {[%emt 0:00:00]} 36. Bxc7 {[%emt 0:00:07]} Kxc7 {[%emt 0:00:02]} 37. e5 {[%emt 0:00:12]} Ba6 {[%emt 0:00:01]} 38. f6 {[%emt 0:01:47]} d3 {[%emt 0:00:17]} 39. Ne4 {[%emt 0:02:35]} Kd8 {[%emt 0:02:19]} 40. e6 {[%emt 0:01:48]} Bb5 {[%emt 0:02:35]} 41. Kc1 {[%emt 0:32:54]} 1-0

[Event "ESP-chT Div I 2018"]
[Site "Linares"]
[Date "2018.08.09"]
[Round "4"]
[White "Shvayger, Yuliya"]
[Black "Perez De Aranda A, Leonardo I"]
[Result "1-0"]
[ECO "B91"]
[WhiteElo "2390"]
[BlackElo "2107"]
[Annotator "NA"]
[PlyCount "85"]
[EventDate "2018.08.06"]
[EventType "team-tourn"]
[EventCountry "ESP"]
[SourceTitle "playchess.com"]
[Source "ChessBase"]
[SourceQuality "1"]
[TimeControl "40/5400+30:1800+30"]

1. e4 {[%emt 0:00:00]} c5 {[%emt 0:00:00]} 2. Nf3 {[%emt 0:00:00]} d6 {[%emt 0:00:04]} 3. d4 {[%emt 0:00:00]} cxd4 {[%emt 0:00:11]} 4. Nxd4 {[%emt 0:00:00]} Nf6 {[%emt 0:00:07]} 5. Nc3 {[%emt 0:00:00]} a6 {[%emt 0:00:07]} 6. g3 {[%emt 0:00:04]} g6 {[%emt 0:02:37]} 7. Bg2 {[%emt 0:00:20]} Bg7 {[%emt 0:00:10]} 8. O-O {[%emt 0:00:21]} O-O {[%emt 0:00:12]} 9. h3 {[%emt 0:00:06]} Nc6 {[%emt 0:01:45]} 10. Be3 {[%emt 0:00:11]} Bd7 {[%emt 0:01:36]} 11. Nde2 {[%emt 0:19:18]} Rb8 {[%emt 0:06:16]} 12. Nd5 {[%emt 0:01:48]} b5 {[%emt 0:00:17]} 13. c3 {[%emt 0:04:36]} Ne8 {[%emt 0:11:36]} 14. Nd4 {[%emt 0:11:33]} Nxd4 {[%emt 0:03:49]} 15. Bxd4 {[%emt 0:01:06]} e6 {[%emt 0:02:41]} 16. Bxg7 {[%emt 0:05:33]} Kxg7 {[%emt 0:10:16]} 17. Ne3 {[%emt 0:05:13]} Bc6 {[%emt 0:12:58]} 18. Qd3 {[%emt 0:03:00]} Qb6 {[%emt 0:08:47]} 19. Rad1 {[%emt 0:06:59]} Rb7 20. Kh2 f5 {[%emt 0:12:16]} 21. f4 {[%emt 0:12:08]} Bxe4 {[%emt 0:08:17]} 22. Bxe4 {[%emt 0:00:08]} fxe4 {[%emt 0:00:00]} 23. Qxe4 {[%emt 0:00:11]} Nf6 24. Qxe6 {[%emt 0:03:12]} Re8 {[%emt 0:03:26]} 25. Qxf6+ {[%emt 0:00:30]} Kxf6 {[%emt 0:00:04]} 26. Nd5+ {[%emt 0:00:06]} Kf7 {[%emt 0:01:02]} 27. Nxb6 {[%emt 0:00:08]} Re2+ {[%emt 0:00:03]} 28. Kg1 {[%emt 0:00:06]} Rxb6 {[%emt 0:00:12]} 29. Rf2 {[%emt 0:00:16]} Re3 {[%emt 0:01:00]} 30. Kg2 {[%emt 0:03:34]} h5 31. Rd4 Rc6 {[%emt 0:03:24]} 32. Rfd2 {[%emt 0:00:55]} h4 {[%emt 0:02:27]} 33. gxh4 {[%emt 0:00:30]} Ke7 {[%emt 0:06:39]} 34. a4 {[%emt 0:06:30]} bxa4 {[%emt 0:01:32]} 35. Rxa4 {[%emt 0:00:07]} Ke6 {[%emt 0:01:28]} 36. Ra5 {[%emt 0:00:17]} Re4 {[%emt 0:00:55]} 37. Kf3 {[%emt 0:01:04]} Rcc4 {[%emt 0:00:38]} 38. Rxa6 {[%emt 0:00:11]} Rxf4+ {[%emt 0:00:03]} 39. Kg3 {[%emt 0:00:06]} Rxh4 {[%emt 0:00:45]} 40. Rdxd6+ {[%emt 0:00:46]} Ke5 {[%emt 0:00:44]} 41. Rxg6 {[%emt 0:30:28]} Rh8 {[%emt 0:30:27]} 42. Rg5+ {[%emt 0:00:19]} Ke4 {[%emt 0:00:04]} 43. Rg4+ {[%emt 0:00:09]} 1-0

[Event "ESP-chT Div I 2018"]
[Site "Linares"]
[Date "2018.08.09"]
[Round "4"]
[White "Alonso Moyano, Jonathan"]
[Black "Alonso Alvarez, Aitor"]
[Result "1/2-1/2"]
[ECO "C10"]
[WhiteElo "2388"]
[BlackElo "2306"]
[Annotator "NA"]
[PlyCount "60"]
[EventDate "2018.08.06"]
[EventType "team-tourn"]
[EventCountry "ESP"]
[SourceTitle "playchess.com"]
[Source "ChessBase"]
[SourceQuality "1"]
[TimeControl "40/5400+30:1800+30"]

1. e4 {[%emt 0:00:00]} e6 {[%emt 0:00:00]} 2. d4 {[%emt 0:00:06]} d5 {[%emt 0:00:00]} 3. Nc3 {[%emt 0:00:39]} dxe4 {[%emt 0:00:00]} 4. Nxe4 {[%emt 0:00:07]} Nd7 {[%emt 0:00:01]} 5. Nf3 {[%emt 0:00:53]} Ngf6 {[%emt 0:00:10]} 6. Nxf6+ {[%emt 0:01:15]} Nxf6 {[%emt 0:00:06]} 7. Bg5 {[%emt 0:04:23]} Be7 {[%emt 0:05:43]} 8. Bd3 {[%emt 0:02:28]} O-O {[%emt 0:00:21]} 9. Qd2 {[%emt 0:07:44]} b6 {[%emt 0:00:38]} 10. O-O-O {[%emt 0:01:05]} Bb7 {[%emt 0:00:38]} 11. h4 {[%emt 0:03:49]} c5 {[%emt 0:09:07]} 12. dxc5 {[%emt 0:05:48]} Qd5 {[%emt 0:06:23]} 13. Kb1 {[%emt 0:02:09]} Qxc5 {[%emt 0:00:30]} 14. Bxf6 {[%emt 0:13:25]} Bxf6 {[%emt 0:01:00]} 15. Ng5 {[%emt 0:00:07]} g6 {[%emt 0:09:29]} 16. f4 {[%emt 0:00:10]} Rfd8 {[%emt 0:09:40]} 17. h5 {[%emt 0:03:47]} Ba6 {[%emt 0:06:23]} 18. Ne4 {[%emt 0:24:37]} Qd4 {[%emt 0:01:13]} 19. Nxf6+ {[%emt 0:00:13]} Qxf6 {[%emt 0:00:08]} 20. Qe3 {[%emt 0:02:22]} Bxd3 {[%emt 0:00:30]} 21. Rxd3 {[%emt 0:00:07]} Rxd3 {[%emt 0:00:33]} 22. cxd3 {[%emt 0:00:06]} Rd8 {[%emt 0:02:04]} 23. Qe4 {[%emt 0:05:54]} Qd4 {[%emt 0:04:30]} 24. hxg6 {[%emt 0:04:10]} hxg6 {[%emt 0:01:07]} 25. Kc2 {[%emt 0:00:07]} Rc8+ {[%emt 0:03:12]} 26. Kb1 {[%emt 0:02:25]} Rd8 {[%emt 0:13:02]} 27. Kc2 {[%emt 0:00:20]} Rc8+ {[%emt 0:02:44]} 28. Kb1 {[%emt 0:01:05]} Rd8 {[%emt 0:00:07]} 29. Kc2 {[%emt 0:00:06]} Rc8+ {[%emt 0:00:09]} 30. Kb1 {[%emt 0:00:07]} Rd8 {[%emt 0:00:06]} 1/2-1/2